Cogmind - Beta 10.2 @@@ ROGUE MODE // 2021.01.15 @ 22:55:34 Player: Wyvric Result: Smashed by cave-in Performance ------------- Evolutions (0) 0 Regions Visited (4) 800 Robots Destroyed (8) 40 Value Destroyed (152) 152 Prototype IDs (0) 0 Alien Tech Used (0) 0 Bonus (0) 0 TOTAL SCORE: 992 Bonus ------- None Cogmind --------- Core Integrity 0/250 Matter 209/300 Energy 58/125 System Corruption 15% Temperature Cool (68) Movement Walking (120) Location -9/Mines Parts ------- > --- POWER (1) -------- Light Ion Engine > --- PROPULSION (2) --- Aluminum Leg Aluminum Leg > --- UTILITY (2) ------ Large Storage Unit Power Shielding > --- WEAPON (2) ------- (None) > --- INVENTORY (10) --- Light Fission Core Light Fission Core Flight Unit Flight Unit Hardened Light Armor Plating Light Assault Rifle Peak State ------------ > --- POWER ------------ Light Ion Engine > --- PROPULSION ------- Aluminum Leg Aluminum Leg > --- UTILITY ---------- Salvage Targeting Computer Hardened Light Armor Plating > --- WEAPON ----------- EM Pulse Gun EM Pulse Gun > --- INVENTORY -------- Wheel Wheel [Rating: 9] Favorites ----------- Power Light Ion Engine Engine Light Ion Engine Propulsion Wheel Leg Aluminum Leg Wheel Wheel Flight Unit Flight Unit Utility Large Storage Unit Storage Large Storage Unit Processor Salvage Targeting Computer Protection Power Shielding Weapon Mining Laser Energy Gun EM Pulse Gun Special Weapon Mining Laser Build | -11 -10 -10 -10 -9 ------- Run | Scr Mat Min Exi Min Slots Evolved . | . . . . . Power . | . . . . . Propulsion . | . . . . . Utility . | . . . . . Weapon . | . . . . . Parts Attached 29 | 5 11 8 . 5 Power 3 | 1 . 1 . 1 Engine 3 | 1 . 1 . 1 Core . | . . . . . Reactor . | . . . . . Propulsion 14 | 2 4 5 . 3 Treads . | . . . . . Leg 4 | 2 . . . 2 Wheel 7 | . 3 3 . 1 Hover . | . . . . . Flight 3 | . 1 2 . . Utility 4 | . 4 . . . Device . | . . . . . Storage 1 | . 1 . . . Processor 1 | . 1 . . . Hackware . | . . . . . Protection 2 | . 2 . . . Artifact . | . . . . . Weapon 8 | 2 3 2 . 1 Energy Gun 4 | 2 1 . . 1 Energy Cannon . | . . . . . Ballistic Gun . | . . . . . Ballistic Cannon . | . . . . . Launcher . | . . . . . Special Weapon 4 | . 2 2 . . Impact Weapon . | . . . . . Slashing Weapon . | . . . . . Piercing Weapon . | . . . . . Special Melee Weapon . | . . . . . Unidentified Prototypes . | . . . . . Parts Lost 6 | . 1 . . 5 Power . | . . . . . Propulsion 2 | . . . . 2 Utility . | . . . . . Weapon 4 | . 1 . . 3 Highest Loss Streak 2 | . 1 . . 2 Average Slot Usage (%) 97 | . 95 98 100 94 Engine 14 | . 14 14 14 14 Leg 2 | . 7 . . . Wheel 24 | . 21 27 28 24 Storage 11 | . 4 14 14 14 Processor 2 | . 8 . . . Protection 13 | . 12 14 14 14 Energy Gun 7 | . 26 . . . Special Weapon 19 | . . 26 28 25 Naked Turns . | . . . . . Heaviest Build 27 | 7 27 22 22 22 Greatest Support 26 | 20 20 20 20 26 Greatest Overweight (x) 6 | . 1 1 1 6 Average Overweight (x) . | . . . 1 . Largest Inventory Capacity 10 | 4 10 10 10 10 Average Capacity 8 | 4 6 10 10 10 Most Carried 10 | 4 9 10 10 10 Average Carried 7 | 1 4 8 9 9 Final Capacity 10 | 4 10 10 10 10 Final Carried 10 | 2 8 10 10 6 Class Distribution -------------------- 100% | Mutant Dominant Class ---------------- Mutant | -10/Materials Mutant | -10/Mines Mutant | -10/Exiles Mutant | -9/Mines Resources | -11 -10 -10 -10 -9 ----------- Run | Scr Mat Min Exi Min Matter Collected 384 | 250 66 43 . 25 Remotely . | . . . . . Salvage Created 203 | 33 170 . . . Parts 14 | 3 11 . . . Haulers Intercepted . | . . . . . Recyclers Shooed . | . . . . . Parts Field Recycled . | . . . . . Retrieved Matter . | . . . . . Parts Self-Destructed . | . . . . . Prevented . | . . . . . Kills | -11 -10 -10 -10 -9 ------- Run | Scr Mat Min Exi Min Combat Hostiles Destroyed 8 | 1 7 . . . Guns 8 | 1 7 . . . Classes Destroyed 2 | 1 1 . . . Swarmer 5 | . 5 . . . Grunt 3 | 1 2 . . . Best Kill Streak 3 | 1 3 . . . Combat Bots Only 3 | 1 3 . . . Max Kills in Single Turn 1 | 1 1 . . . Gunslinging . | . . . . . Exploded . | . . . . . Melee . | . . . . . Uniques/NPCs Destroyed . | . . . . . Combat | -11 -10 -10 -10 -9 -------- Run | Scr Mat Min Exi Min Damage Taken 951 | 22 458 . . 471 Core 255 | 22 91 . . 142 Absorbed by Shields . | . . . . . Core Remaining (%) 91 | 91 . . . . Volleys Fired 54 | 1 26 . . 27 Largest 2 | 2 2 . . 2 Hottest 200 | 80 80 . . 200 Shots Fired 94 | 2 44 . . 48 Gun 49 | 2 44 . . 3 Cannon . | . . . . . Launcher . | . . . . . Special 45 | . . . . 45 Kinetic . | . . . . . Thermal 66 | . 18 . . 48 Explosive . | . . . . . Electromagnetic 28 | 2 26 . . . Robot Hit Streak 5 | 1 5 . . . Robot Miss Streak 5 | . 5 . . . Penetration Max . | . . . . . Secondary Targets 3 | . 3 . . . Max Gunslinging Chain 1 | . 1 . . . Shots Hit Robots 23 | 1 22 . . . Core Hits 10 | 1 9 . . . Critical Hits . | . . . . . Critical Kills . | . . . . . Critical Parts Destroyed . | . . . . . Melee Attacks . | . . . . . Impact . | . . . . . Slashing . | . . . . . Piercing . | . . . . . Sneak Attacks . | . . . . . Combat Hostiles . | . . . . . Follow-up Attacks . | . . . . . Damage Inflicted 291 | 15 276 . . . Guns 291 | 15 276 . . . Cannons . | . . . . . Explosions . | . . . . . Melee . | . . . . . Ramming . | . . . . . Kinetic . | . . . . . Thermal 102 | . 102 . . . Explosive . | . . . . . Electromagnetic 189 | 15 174 . . . Impact . | . . . . . Slashing . | . . . . . Piercing . | . . . . . Highest Corruption 9 | . . . . 9 Average Corruption 6 | . . . . 6 Corruption Purged . | . . . . . Effects 4 | . . . . 4 Matter Fused 2 | . . . . 2 Energy Discharges 1 | . . . . 1 Targeting Errors 1 | . . . . 1 Overload Shots . | . . . . . Overflow Damage . | . . . . . Projectiles . | . . . . . Explosions . | . . . . . Melee . | . . . . . Knockbacks . | . . . . . Impact . | . . . . . Kinetic . | . . . . . Secondary . | . . . . . Self-Inflicted Damage . | . . . . . Shots . | . . . . . Rammed . | . . . . . Targets Rammed . | . . . . . Kicked . | . . . . . Crushed . | . . . . . Highest Temperature 288 | 24 238 . . 288 Average Temperature 107 | 15 97 . . 113 Received Heat Transfer 138 | 12 126 . . . Effects 10 | . 5 . . 5 Energy Bleed 2 | . . . . 2 Interference 8 | . 5 . . 3 Siege Activations . | . . . . . Robots Corrupted . | . . . . . Combat Hostiles . | . . . . . Parts Fried . | . . . . . Impact Corruptions . | . . . . . Robots Melted . | . . . . . Combat Hostiles . | . . . . . Parts Melted . | . . . . . Heat Transferred 225 | . 225 . . . Parts Sabotaged . | . . . . . Parts Stolen . | . . . . . Parts Stripped . | . . . . . Power Chain Reactions . | . . . . . Missiles Intercepted . | . . . . . Alert | -11 -10 -10 -10 -9 ------- Run | Scr Mat Min Exi Min Peak Influence 188 | 20 188 . . . Initial 13 | . 13 . . . Average 32 | 4 89 . . . Maximum Alert Level . | . . . . . Low Security (%) 100 | 100 100 100 . 100 Level 1 . | . . . . . Level 2 . | . . . . . Level 3 . | . . . . . Level 4 . | . . . . . Level 5 . | . . . . . High Security . | . . . . . Max Security . | . . . . . Squads Dispatched 1 | . 1 . . . Investigation . | . . . . . Extermination . | . . . . . Reinforcement 1 | . 1 . . . Assault . | . . . . . Garrison . | . . . . . Intercept . | . . . . . Construction Impeded . | . . . . . Haulers Reinforced . | . . . . . Stealth | -11 -10 -10 -10 -9 --------- Run | Scr Mat Min Exi Min Distress Signals 1 | . 1 . . . Communications Jammed . | . . . . . Distress Signals . | . . . . . Times Spotted 10 | 1 9 . . . Peak Tracking Total 3 | 1 3 . . . Tactical Retreats . | . . . . . Traps | -11 -10 -10 -10 -9 ------- Run | Scr Mat Min Exi Min Traps Triggered . | . . . . . Indirectly . | . . . . . Trap Hack Attempts . | . . . . . Triggered . | . . . . . Disarmed . | . . . . . Reprogrammed . | . . . . . Reused . | . . . . . Traps Extracted . | . . . . . Installed . | . . . . . Triggered . | . . . . . Machines | -11 -10 -10 -10 -9 ---------- Run | Scr Mat Min Exi Min Machines Disabled . | . . . . . Max in Single Turn . | . . . . . Machines Sabotaged . | . . . . . Garrisons Compromised . | . . . . . Overloaded Fab Kills . | . . . . . Fab Network Shutdowns . | . . . . . Hacking | -11 -10 -10 -10 -9 --------- Run | Scr Mat Min Exi Min Machines Accessed 5 | . 2 . 3 . Terminals 2 | . 2 . . . Fabricators . | . . . . . Repair Stations . | . . . . . Recycling Units . | . . . . . Scanalyzers . | . . . . . Garrison Access . | . . . . . Total Hacks 32 | . 6 . 26 . Successful 28 | . 2 . 26 . Failed 4 | . 4 . . . Catastrophic 1 | . 1 . . . Database Lockouts . | . . . . . Manual 7 | . 5 . 2 . Terminals 6 | . 6 . . . Fabricators . | . . . . . Repair Stations . | . . . . . Recycling Units . | . . . . . Scanalyzers . | . . . . . Garrison Access . | . . . . . Terminal Hacks 27 | . 1 . 26 . Record 27 | . 1 . 26 . Fabricator Hacks . | . . . . . Repair Station Hacks . | . . . . . Recycling Unit Hacks . | . . . . . Scanalyzer . | . . . . . Garrison Access Hacks . | . . . . . Unauthorized Hacks 1 | . 1 . . . Terminals 1 | . 1 . . . Assimilate 1 | . 1 . . . Fabricators . | . . . . . Repair Stations . | . . . . . Recycling Units . | . . . . . Scanalyzers . | . . . . . Garrison Access . | . . . . . Data Cores Recovered . | . . . . . Used . | . . . . . Hacking Detections . | . . . . . Full Trace Events . | . . . . . Feedback Events . | . . . . . Feedback Blocked . | . . . . . Robot Schematics Acquired . | . . . . . Robots Built . | . . . . . Matter . | . . . . . Time . | . . . . . Total Robot Build Rating . | . . . . . Part Schematics Acquired . | . . . . . Parts Built . | . . . . . Matter . | . . . . . Time . | . . . . . Total Part Build Rating . | . . . . . Parts Repaired . | . . . . . Time . | . . . . . Parts Recycled . | . . . . . Recycled Matter . | . . . . . Retrieved Matter . | . . . . . Retrieved Components . | . . . . . Parts Scanalyzed . | . . . . . Part Schematics Acquired . | . . . . . Parts Damaged . | . . . . . Bothacking | -11 -10 -10 -10 -9 ------------ Run | Scr Mat Min Exi Min Used RIF Installer . | . . . . . Robots Hacked . | . . . . . Non-combat . | . . . . . Combat . | . . . . . Robot Hacks Applied . | . . . . . Relay Couplers Released . | . . . . . Robots Rewired . | . . . . . Allies Hacked . | . . . . . Hacks Repelled . | . . . . . Allies | -11 -10 -10 -10 -9 -------- Run | Scr Mat Min Exi Min Total Allies . | . . . . . Largest Group . | . . . . . Highest-Rated Group . | . . . . . Highest-Rated Ally . | . . . . . Total Orders . | . . . . . Ally Attacks . | . . . . . Total Damage . | . . . . . Kills . | . . . . . Allies Corrupted . | . . . . . Allies Melted . | . . . . . Intel | -11 -10 -10 -10 -9 ------- Run | Scr Mat Min Exi Min Robot Analysis Total . | . . . . . Derelict Logs Recovered . | . . . . . Drone Launches . | . . . . . Drone Recoveries . | . . . . . Exploration | -11 -10 -10 -10 -9 ------------- Run | Scr Mat Min Exi Min Turns Passed 1585 | 100 406 155 458 466 Spaces Moved 1186 | 89 299 156 506 136 Core 32 | 30 . . . 2 Treads . | . . . . . Legs 123 | 59 62 . . 2 Wheels 1031 | . 237 156 506 132 Hover . | . . . . . Flight . | . . . . . Fastest Speed 50 | 50 80 80 90 90 Average Speed 91 | 96 90 89 90 94 Slowest Speed 350 | 120 120 90 90 350 Overloaded Moves . | . . . . . Propulsion Burnouts . | . . . . . Robots Hopped . | . . . . . Cave-ins Triggered 3 | . . . . 3 Exploration Rate (%) 38 | 8 45 37 79 23 Regions Visited 4 Branch Regions 3 Pre-discovered Areas . | . . . . . Known Exits Taken . | . . . . . Unknown Exits Taken 4 | 1 1 1 1 . Scrap Searched 1 | . . . . 1 Spaces Dug 42 | . . . . 42 Terrain Destroyed 44 | . . . . 44 Melee . | . . . . . Projectile 44 | . . . . 44 AOE . | . . . . . Terrain Rammed . | . . . . . Walls Destroyed . | . . . . . Machines Disabled . | . . . . . Actions | -11 -10 -10 -10 -9 --------- Run | Scr Mat Min Exi Min Total 1505 | 101 388 168 509 339 Wait 203 | . 34 . . 169 Move 1182 | 88 298 155 505 136 Hop . | . . . . . Pick Up 25 | 7 14 2 2 . Fast Attach 2 | . . 2 . . Attach 13 | 5 4 . . 4 Detach 1 | . 1 . . . Swap 14 | . 7 6 . 1 Drop 11 | . 4 3 2 2 Fire 54 | 1 26 . . 27 Melee . | . . . . . Ram . | . . . . . Kick . | . . . . . Crush . | . . . . . Escape Stasis . | . . . . . Rewire . | . . . . . Trap . | . . . . . Miscellaneous . | . . . . . Route ------- -11/Scrapyard -10/Materials -10/Mines -10/Exiles -9/Mines History --------- Turn | Location | Event 2 | -11/Scrapyard | Met Revision 17 71 | -11/Scrapyard | Discovered new exit (range 8) 101 | -11/Scrapyard | Entered Materials 313 | -10/Materials | Build established: Mutant 482 | -10/Materials | Discovered new exit (range 16) 507 | -10/Materials | Entered Mines 528 | -10/Mines | Met a Derelict bent on vengeance 658 | -10/Mines | Deemed a non-threat by the Exiles lab entrance 658 | -10/Mines | Discovered new exit (range 5) 662 | -10/Mines | Entered Exiles 684 | -10/Exiles | Discovered new exit (range 14) 698 | -10/Exiles | Met 8R-AWN 714 | -10/Exiles | Met EX-HEX 763 | -10/Exiles | Met EX-BIN 851 | -10/Exiles | Met EX-DEC 930 | -10/Exiles | Visited The Gauntlet 1120 | -10/Exiles | Entered Mines 1504 | -9/Mines | Crushed by falling debris 1504 | -9/Mines | Core integrity fell below 50% 1549 | -9/Mines | Crushed by falling debris 1587 | -9/Mines | Crushed by falling debris 1587 | -9/Mines | Smashed by cave-in Last Messages --------------- 01517_ Overheating: System interference. 01517_ Mining Laser temporarily disabled. 01522_ Overheating: Energy bleed (-27). 01534_ System corrupted: Matter fused (-5). 01549_ The unstable cave ceiling collapses. 01549_ Crushed by falling debris. 01549_ Wheel destroyed. 01549_ System corrupted by crushing effect (+5). 01551_ System corrupted: Energy discharge (-37). 01559_ System corrupted: Mining Laser targeting data glitched. 01567_ Dropped Lgt. Ion Engine. 01578_ The unstable cave ceiling collapses. 01578_ Lgt. Ion Engine crushed. 01586_ System corrupted: Matter fused (-9). 01587_ The unstable cave ceiling collapses. 01587_ Crushed by falling debris. 01587_ Mining Laser destroyed. 01587_ System corrupted by crushing effect (+3). 01587_ Sml. Laser destroyed. 01587_ System corrupted by crushing effect (+3). Map ----- +----------------------------------------------------+ | | | | | | | | | | | | | | | | | | | | | | | | | | | | | | | | | | | | | ???????????????????????# # # ##????????????????? | | ???????????????????????## # #????????????????? | | ????????????????????????###### ##???###??????????? | | ????????????????????????# #??# #??## #########??? | | ????????????????????????# #?##"#### #??? | | ????????????????????????##### "## #??? | | ????????????????????????# ## ####### #??? | | ????????????????????????#@## ## ##?????# #??? | | ????????????????????????#;# ##### #??????# ###? | | ????????????????????????## ##???# #?????## ## | | ????????????????????????# #?????# #?????# # | | ???????????????????????# #??????# #?????# !] # | | ???????????????????????# ???????# #?????## = ## | | ???????????????????????# ??????# #?????## #? | | ??????????????????????# ??????# #????## ##? | | ????????????????????? ?????# #????# #?? | | ????????????????????? $ ?????# #????## #?? | | ???????????????????? ## ## ###???## #?? | | ??????????????????????### #????# #?? | | ?????????????????????????# ### #??### #?? | | ?????????????????????????## #??# #??# #?# | | ??????????????????????????#? #???# #### ### | | ??????????????????????????# #???## #### | | ??????????????????????????## #????#""#### ### | | ???????????????????????????####???####### # | | ?????????????????????????????????## #### | | ?????????????????????????????????# ###### # | | ?????????????????????????????????# ##?##### | | ?????????????????????????????????## ##????? | | ??????????????????????????????????## ##???? | | ???????????????????????????????????## ##??? | | ????????????????????????????????????### #??? | +----------------------------------------------------+ Best States ------------- Heat Dissipation 25 Energy Generation 10 Energy Capacity 125 Matter Stores 300 Matter Capacity 300 Sight Range 16 Terrain Scan Density 10 Armor Coverage 150 Power Shielding 33 Evasion (%) 50 Salvage Targeting 1 Item Schematics ----------------- None Robot Schematics ------------------ None Fabricated ------------ Nothing Alien Tech Used ----------------- None Achievements -------------- Unlikely Earthworm Challenges ------------ None Game ------ Seed ExperimentalRefineryThrower Manual? 0 Play Time 00:23:49 Cumulative 4.5 hours Start 2021.01.15 @ 22:26:07 End 2021.01.15 @ 22:55:34 Sessions 1 Manual Loads 0 Difficulty Rogue Special Mode None Game No. 3 Rogue 3 Adventurer 0 Explorer 0 Win Type - Total 0 Types 0/0/0/0/0/0/0/0/0 Lore% 9 Gallery% 10 Achievement% 10 Wizard Run 0 Options --------- ASCII 0 Keyboard 0 Movement Mouse Keybinds 0 Fullscreen 1 Font 18/TerminusBold Map View 76x50 Tactical HUD 1 Map Filters NONE Filters NONE Steam X RUN: f8b3bb65-bd5e-4e37-9c26-d4f281f59125